[Event "Late-Titled-Tuesday-Blitz-April-02-2024"]
[Site "Chess.com"]
[Date "2024.04.02"]
[Round "2"]
[White "Shankland"]
[Black "ValeriyGrinev"]
[Result "1-0"]
[WhiteElo "2912"]
[BlackElo "2583"]
[TimeControl "180+1"]
[EndTime "14:16:39 PDT"]
[Termination "Shankland won by resignation"]

1. e4 {[%clk 0:03:00.9]} 1... c5 {[%clk 0:03:00]} 2. Nf3 {[%clk 0:03:00.8]} 2...
e6 {[%clk 0:03:00.6]} 3. d4 {[%clk 0:03:00.3]} 3... cxd4 {[%clk 0:03:01.5]} 4.
Nxd4 {[%clk 0:02:59.9]} 4... a6 {[%clk 0:03:01.9]} 5. c4 {[%clk 0:02:58.8]} 5...
Nf6 {[%clk 0:03:01.3]} 6. Nc3 {[%clk 0:02:58.2]} 6... Qc7 {[%clk 0:03:01.9]} 7.
Be2 {[%clk 0:02:57.5]} 7... Bb4 {[%clk 0:03:00.4]} 8. f3 {[%clk 0:02:57.7]} 8...
b6 {[%clk 0:02:52.3]} 9. O-O {[%clk 0:02:56.7]} 9... Bb7 {[%clk 0:02:51.8]} 10.
Be3 {[%clk 0:02:55.6]} 10... Bxc3 {[%clk 0:02:49.7]} 11. bxc3 {[%clk 0:02:55.3]}
11... d6 {[%clk 0:02:50.3]} 12. a4 {[%clk 0:02:49.5]} 12... Nbd7 {[%clk
0:02:48.5]} 13. a5 {[%clk 0:02:49.7]} 13... bxa5 {[%clk 0:02:48]} 14. Nb3 {[%clk
0:02:50]} 14... O-O {[%clk 0:02:25.5]} 15. Nxa5 {[%clk 0:02:49.4]} 15... Nc5
{[%clk 0:02:24.7]} 16. Qd2 {[%clk 0:02:45.6]} 16... Rfd8 {[%clk 0:02:10.6]} 17.
Rfd1 {[%clk 0:02:44.2]} 17... Ne8 {[%clk 0:01:51.2]} 18. h4 {[%clk 0:02:34.4]}
18... Rdc8 {[%clk 0:01:50.2]} 19. h5 {[%clk 0:02:27.8]} 19... h6 {[%clk
0:01:47.7]} 20. Rdb1 {[%clk 0:02:16.6]} 20... Rcb8 {[%clk 0:01:38.3]} 21. g4
{[%clk 0:02:07.3]} 21... Bc8 {[%clk 0:01:37.6]} 22. Rd1 {[%clk 0:02:03]} 22...
Nb3 {[%clk 0:01:30.4]} 23. Nxb3 {[%clk 0:02:02.4]} 23... Rxb3 {[%clk 0:01:31.3]}
24. c5 {[%clk 0:01:43.1]} 24... dxc5 {[%clk 0:01:26.3]} 25. Bf4 {[%clk
0:01:28.8]} 25... Qb6 {[%clk 0:01:08.7]} 26. Qd8 {[%clk 0:01:24.8]} 26... Bb7
{[%clk 0:01:01.3]} 27. Qxb6 {[%clk 0:01:11.2]} 27... Rxb6 {[%clk 0:01:02.2]} 28.
Be3 {[%clk 0:01:11.5]} 28... Rc8 {[%clk 0:00:50.8]} 29. Rdb1 {[%clk 0:01:09.6]}
29... Rxb1+ {[%clk 0:00:39.9]} 30. Rxb1 {[%clk 0:01:10.5]} 30... Rc7 {[%clk
0:00:38.6]} 31. Rb6 {[%clk 0:01:06.5]} 31... Nf6 {[%clk 0:00:31.9]} 32. Bf4
{[%clk 0:00:57.1]} 32... Rd7 {[%clk 0:00:32.1]} 33. Bd6 {[%clk 0:00:56.2]} 33...
Ne8 {[%clk 0:00:22.4]} 34. Bxc5 {[%clk 0:00:54.5]} 34... Rc7 {[%clk 0:00:22.6]}
35. Bd4 {[%clk 0:00:53.2]} 35... Kf8 {[%clk 0:00:23.1]} 36. Kf2 {[%clk
0:00:51.6]} 36... Ke7 {[%clk 0:00:23.5]} 37. Ke3 {[%clk 0:00:46.3]} 37... f6
{[%clk 0:00:23.9]} 38. e5 {[%clk 0:00:42.9]} 38... fxe5 {[%clk 0:00:21.9]} 39.
Bxe5 {[%clk 0:00:42.7]} 39... Rd7 {[%clk 0:00:21.2]} 40. c4 {[%clk 0:00:41]}
40... Nd6 {[%clk 0:00:18.6]} 41. Bxd6+ {[%clk 0:00:41]} 1-0

[Event "Late-Titled-Tuesday-Blitz-April-02-2024"]
[Site "Chess.com"]
[Date "2024.04.02"]
[Round "2"]
[White "WCM-Mexicana"]
[Black "Vahe_Danielyan"]
[Result "0-1"]
[WhiteElo "2348"]
[BlackElo "2651"]
[TimeControl "180+1"]
[EndTime "14:16:43 PDT"]
[Termination "Vahe_Danielyan won by checkmate"]

1. d4 {[%clk 0:02:57.4]} 1... Nf6 {[%clk 0:02:59]} 2. c4 {[%clk 0:02:57.4]} 2...
e6 {[%clk 0:02:58.5]} 3. Nc3 {[%clk 0:02:57.5]} 3... Bb4 {[%clk 0:02:57.2]} 4.
f3 {[%clk 0:02:57]} 4... c5 {[%clk 0:02:54.6]} 5. dxc5 {[%clk 0:02:53.4]} 5...
Qa5 {[%clk 0:02:51.9]} 6. Bd2 {[%clk 0:02:50.9]} 6... Na6 {[%clk 0:02:49.2]} 7.
a3 {[%clk 0:02:50.4]} 7... Bxc3 {[%clk 0:02:49.4]} 8. Bxc3 {[%clk 0:02:51.2]}
8... Qxc5 {[%clk 0:02:49.9]} 9. e4 {[%clk 0:02:50.2]} 9... d6 {[%clk 0:02:44.1]}
10. Nh3 {[%clk 0:02:35.9]} 10... e5 {[%clk 0:02:39.7]} 11. Nf2 {[%clk
0:02:34.4]} 11... Be6 {[%clk 0:02:39.1]} 12. Nd3 {[%clk 0:02:16.7]} 12... Qc7
{[%clk 0:02:31.1]} 13. b3 {[%clk 0:02:16.9]} 13... O-O {[%clk 0:02:17.1]} 14.
Nb4 {[%clk 0:02:14]} 14... Nc5 {[%clk 0:02:04.9]} 15. Be2 {[%clk 0:02:09.4]}
15... a5 {[%clk 0:02:05]} 16. Nd5 {[%clk 0:02:09.6]} 16... Bxd5 {[%clk 0:02:05]}
17. exd5 {[%clk 0:02:05.5]} 17... a4 {[%clk 0:01:49.4]} 18. b4 {[%clk 0:02:01]}
18... Nb3 {[%clk 0:01:49.6]} 19. Ra2 {[%clk 0:01:57.7]} 19... b5 {[%clk
0:01:49.4]} 20. Rc2 {[%clk 0:01:47.9]} 20... bxc4 {[%clk 0:01:48.1]} 21. Bb2
{[%clk 0:01:48.2]} 21... Qb6 {[%clk 0:01:40.6]} 22. Bxc4 {[%clk 0:01:45.5]}
22... Rac8 {[%clk 0:01:17.5]} 23. Bxb3 {[%clk 0:01:21.4]} 23... axb3 {[%clk
0:01:18.4]} 24. Rxc8 {[%clk 0:01:21.7]} 24... Rxc8 {[%clk 0:01:19.3]} 25. Qxb3
{[%clk 0:01:20.2]} 25... Qb5 {[%clk 0:01:18.4]} 26. Kf2 {[%clk 0:01:15.8]} 26...
Nxd5 {[%clk 0:01:15]} 27. Rd1 {[%clk 0:01:11.5]} 27... Nf4 {[%clk 0:01:11.3]}
28. Rd2 {[%clk 0:00:52.3]} 28... h5 {[%clk 0:00:41.6]} 29. g3 {[%clk 0:00:28.7]}
29... Nh3+ {[%clk 0:00:41]} 30. Kg2 {[%clk 0:00:29.2]} 30... Ng5 {[%clk
0:00:41.9]} 31. a4 {[%clk 0:00:23]} 31... Qb7 {[%clk 0:00:37.9]} 32. b5 {[%clk
0:00:21.1]} 32... e4 {[%clk 0:00:36.8]} 33. Qd5 {[%clk 0:00:09.4]} 33... exf3+
{[%clk 0:00:36.7]} 34. Kf1 {[%clk 0:00:08.2]} 34... Qe7 {[%clk 0:00:31.8]} 35.
Rd1 {[%clk 0:00:01.6]} 35... Qe2+ {[%clk 0:00:30.9]} 36. Kg1 {[%clk 0:00:02.2]}
36... Qg2# {[%clk 0:00:31.8]} 0-1

[Event "Late-Titled-Tuesday-Blitz-April-02-2024"]
[Site "Chess.com"]
[Date "2024.04.02"]
[Round "2"]
[White "Shiner22"]
[Black "PotapovaM"]
[Result "0-1"]
[WhiteElo "2288"]
[BlackElo "2541"]
[TimeControl "180+1"]
[EndTime "14:16:43 PDT"]
[Termination "PotapovaM won on time"]

1. e4 {[%clk 0:03:00.9]} 1... e6 {[%clk 0:02:58.3]} 2. d4 {[%clk 0:03:00.6]}
2... d5 {[%clk 0:02:58.4]} 3. e5 {[%clk 0:03:00.6]} 3... c5 {[%clk 0:02:55.6]}
4. c3 {[%clk 0:03:00.7]} 4... Bd7 {[%clk 0:02:54]} 5. Nf3 {[%clk 0:02:57.8]}
5... a6 {[%clk 0:02:52.9]} 6. Bd3 {[%clk 0:02:48.8]} 6... Bb5 {[%clk 0:02:43.8]}
7. O-O {[%clk 0:02:45.8]} 7... Nh6 {[%clk 0:02:23.3]} 8. Bxb5+ {[%clk
0:02:27.1]} 8... axb5 {[%clk 0:02:22.4]} 9. dxc5 {[%clk 0:02:27.1]} 9... Bxc5
{[%clk 0:02:22.2]} 10. Bg5 {[%clk 0:02:24.2]} 10... Be7 {[%clk 0:02:19.2]} 11.
Bxe7 {[%clk 0:02:24]} 11... Qxe7 {[%clk 0:02:17.5]} 12. Nd4 {[%clk 0:02:24.6]}
12... Nc6 {[%clk 0:02:12.3]} 13. Nxb5 {[%clk 0:02:00.6]} 13... Nxe5 {[%clk
0:02:11.8]} 14. Qd4 {[%clk 0:01:58.9]} 14... f6 {[%clk 0:01:59.5]} 15. Nd2
{[%clk 0:01:50]} 15... O-O {[%clk 0:01:59]} 16. Kh1 {[%clk 0:01:26.9]} 16... Nf5
{[%clk 0:01:57.6]} 17. Qf4 {[%clk 0:00:54.8]} 17... g5 {[%clk 0:01:57.1]} 18.
Qb4 {[%clk 0:00:52.2]} 18... Qf7 {[%clk 0:01:40.3]} 19. Nd4 {[%clk 0:00:35.7]}
19... Nc6 {[%clk 0:01:20.5]} 20. Nxc6 {[%clk 0:00:32.5]} 20... bxc6 {[%clk
0:01:21.4]} 21. c4 {[%clk 0:00:27.2]} 21... Rfb8 {[%clk 0:01:20.3]} 22. Qc3
{[%clk 0:00:27.4]} 22... d4 {[%clk 0:01:20.4]} 23. Qc2 {[%clk 0:00:27.5]} 23...
c5 {[%clk 0:01:19.2]} 24. a3 {[%clk 0:00:17.8]} 24... Nh4 {[%clk 0:01:18.6]} 25.
Ne4 {[%clk 0:00:16]} 25... Qg6 {[%clk 0:01:15.9]} 26. f3 {[%clk 0:00:14.3]}
26... Nf5 {[%clk 0:01:09.1]} 27. Rf2 {[%clk 0:00:09.8]} 27... Ne3 {[%clk
0:01:07.7]} 28. Qd3 {[%clk 0:00:10.1]} 28... Rc8 {[%clk 0:01:00.6]} 29. Re1
{[%clk 0:00:08.3]} 29... f5 {[%clk 0:00:56.2]} 30. Nd6 {[%clk 0:00:08.5]} 30...
Rd8 {[%clk 0:00:54.4]} 31. Nb5 {[%clk 0:00:08.4]} 31... e5 {[%clk 0:00:52]} 32.
Rd2 {[%clk 0:00:06]} 32... Qh5 {[%clk 0:00:46.3]} 33. b4 {[%clk 0:00:03.5]}
33... Qh4 {[%clk 0:00:45.8]} 34. Rde2 {[%clk 0:00:01.5]} 34... e4 {[%clk
0:00:42.3]} 0-1

[Event "Late-Titled-Tuesday-Blitz-April-02-2024"]
[Site "Chess.com"]
[Date "2024.04.02"]
[Round "2"]
[White "Hrant_ChessMood"]
[Black "AllStarShark"]
[Result "1-0"]
[WhiteElo "2931"]
[BlackElo "2525"]
[TimeControl "180+1"]
[EndTime "14:16:47 PDT"]
[Termination "Hrant_ChessMood won by resignation"]

1. d4 {[%clk 0:03:00.9]} 1... d5 {[%clk 0:02:58.4]} 2. c4 {[%clk 0:03:00.6]}
2... dxc4 {[%clk 0:02:57]} 3. e3 {[%clk 0:02:59.9]} 3... e5 {[%clk 0:02:47.5]}
4. Bxc4 {[%clk 0:02:59.8]} 4... exd4 {[%clk 0:02:47.8]} 5. exd4 {[%clk
0:03:00.7]} 5... Bd6 {[%clk 0:02:47.9]} 6. Nf3 {[%clk 0:02:59.6]} 6... Nf6
{[%clk 0:02:45.7]} 7. Qe2+ {[%clk 0:03:00]} 7... Qe7 {[%clk 0:02:45.8]} 8. Qxe7+
{[%clk 0:03:00.4]} 8... Bxe7 {[%clk 0:02:46.5]} 9. O-O {[%clk 0:03:01.2]} 9...
c6 {[%clk 0:02:39]} 10. Re1 {[%clk 0:03:00.6]} 10... Nbd7 {[%clk 0:02:35.8]} 11.
Nc3 {[%clk 0:02:57.7]} 11... Nb6 {[%clk 0:02:34.8]} 12. Bb3 {[%clk 0:02:57.4]}
12... Nbd5 {[%clk 0:02:33.2]} 13. Bg5 {[%clk 0:02:57.3]} 13... Be6 {[%clk
0:02:32.8]} 14. Bxf6 {[%clk 0:02:53.3]} 14... gxf6 {[%clk 0:02:28.6]} 15. Nxd5
{[%clk 0:02:32.5]} 15... Bxd5 {[%clk 0:02:21.4]} 16. Bxd5 {[%clk 0:02:28]} 16...
cxd5 {[%clk 0:02:22.3]} 17. Nh4 {[%clk 0:02:28.6]} 17... Kd7 {[%clk 0:02:16.9]}
18. Nf5 {[%clk 0:02:28.7]} 18... Rhe8 {[%clk 0:02:13.9]} 19. Kf1 {[%clk
0:02:25.8]} 19... Bb4 {[%clk 0:02:09.3]} 20. Rxe8 {[%clk 0:02:22.2]} 20... Rxe8
{[%clk 0:02:07.4]} 21. a3 {[%clk 0:02:23.1]} 21... Ba5 {[%clk 0:02:04.3]} 22.
Rc1 {[%clk 0:02:22.7]} 22... Bb6 {[%clk 0:01:55.2]} 23. Rd1 {[%clk 0:02:12.1]}
23... Re4 {[%clk 0:01:46.3]} 24. h3 {[%clk 0:01:57.2]} 24... h5 {[%clk
0:01:29.3]} 25. b3 {[%clk 0:01:57.1]} 25... Rf4 {[%clk 0:01:12.7]} 26. Ne3
{[%clk 0:01:52.2]} 26... Kd6 {[%clk 0:00:27.3]} 27. Nc2 {[%clk 0:01:48.6]} 27...
Re4 {[%clk 0:00:26.8]} 28. Rd3 {[%clk 0:01:45.2]} 28... h4 {[%clk 0:00:25.1]}
29. g3 {[%clk 0:01:39.8]} 29... f5 {[%clk 0:00:20.3]} 30. gxh4 {[%clk
0:01:38.7]} 30... Rxh4 {[%clk 0:00:19.7]} 31. a4 {[%clk 0:01:24.2]} 31... a6
{[%clk 0:00:17.8]} 32. Kg2 {[%clk 0:01:18.8]} 32... Ke6 {[%clk 0:00:13.6]} 33.
b4 {[%clk 0:01:16.1]} 33... Kf6 {[%clk 0:00:12]} 34. f3 {[%clk 0:01:03]} 34...
Rh8 {[%clk 0:00:10.5]} 35. b5 {[%clk 0:00:57.8]} 35... axb5 {[%clk 0:00:10]} 36.
axb5 {[%clk 0:00:58.7]} 36... Rg8+ {[%clk 0:00:10]} 37. Kf1 {[%clk 0:00:58.1]}
37... Rc8 {[%clk 0:00:10.5]} 38. Nb4 {[%clk 0:00:58.5]} 38... Ke6 {[%clk
0:00:06.7]} 39. Re3+ {[%clk 0:00:58.7]} 39... Kd6 {[%clk 0:00:06.8]} 40. Re5
{[%clk 0:00:59.4]} 40... Rc1+ {[%clk 0:00:04.1]} 41. Ke2 {[%clk 0:00:58.6]}
41... Rb1 {[%clk 0:00:04.5]} 42. Rxd5+ {[%clk 0:00:55.7]} 42... Ke6 {[%clk
0:00:04.9]} 43. Re5+ {[%clk 0:00:56]} 43... Kf6 {[%clk 0:00:05.4]} 44. Nd5+
{[%clk 0:00:56]} 44... Kg5 {[%clk 0:00:04.9]} 45. Nxb6 {[%clk 0:00:56.9]} 45...
Kf4 {[%clk 0:00:04.6]} 46. Nd5+ {[%clk 0:00:55.7]} 1-0

[Event "Late-Titled-Tuesday-Blitz-April-02-2024"]
[Site "Chess.com"]
[Date "2024.04.02"]
[Round "2"]
[White "kiwibobo"]
[Black "Itay121"]
[Result "0-1"]
[WhiteElo "2301"]
[BlackElo "2546"]
[TimeControl "180+1"]
[EndTime "14:16:48 PDT"]
[Termination "Itay121 won by resignation"]

1. e4 {[%clk 0:03:00.6]} 1... Nf6 {[%clk 0:02:57.6]} 2. e5 {[%clk 0:03:00.6]}
2... Nd5 {[%clk 0:02:58]} 3. d4 {[%clk 0:03:01]} 3... d6 {[%clk 0:02:58.2]} 4.
c4 {[%clk 0:03:01.6]} 4... Nb6 {[%clk 0:02:58.3]} 5. f4 {[%clk 0:03:02.3]} 5...
dxe5 {[%clk 0:02:58.1]} 6. fxe5 {[%clk 0:03:02.9]} 6... Bf5 {[%clk 0:02:55.6]}
7. Nc3 {[%clk 0:03:01.9]} 7... e6 {[%clk 0:02:55.9]} 8. Nf3 {[%clk 0:03:01.5]}
8... Bb4 {[%clk 0:02:56]} 9. Be3 {[%clk 0:02:58.7]} 9... O-O {[%clk 0:02:55.6]}
10. Be2 {[%clk 0:02:58.7]} 10... Nc6 {[%clk 0:02:55.6]} 11. O-O {[%clk
0:02:58.7]} 11... f6 {[%clk 0:02:51.7]} 12. exf6 {[%clk 0:02:58.3]} 12... Qxf6
{[%clk 0:02:52.6]} 13. a3 {[%clk 0:02:46.1]} 13... Bxc3 {[%clk 0:02:50.1]} 14.
bxc3 {[%clk 0:02:47]} 14... Rae8 {[%clk 0:02:40.6]} 15. d5 {[%clk 0:02:28.5]}
15... exd5 {[%clk 0:02:38.8]} 16. Bxb6 {[%clk 0:02:27.1]} 16... axb6 {[%clk
0:02:36.8]} 17. cxd5 {[%clk 0:02:27.3]} 17... Ne5 {[%clk 0:02:33]} 18. Nd4
{[%clk 0:02:24.7]} 18... Qg5 {[%clk 0:02:26.7]} 19. Nxf5 {[%clk 0:02:08.3]}
19... Rxf5 {[%clk 0:02:27.6]} 20. Rxf5 {[%clk 0:02:08.9]} 20... Qxf5 {[%clk
0:02:28.5]} 21. Qd4 {[%clk 0:02:09.4]} 21... Ng6 {[%clk 0:02:18.4]} 22. Bc4
{[%clk 0:01:50.6]} 22... Kh8 {[%clk 0:02:13]} 23. Rf1 {[%clk 0:01:50.7]} 23...
Qe5 {[%clk 0:02:03]} 24. Qxe5 {[%clk 0:01:44.1]} 24... Nxe5 {[%clk 0:02:03.9]}
25. d6 {[%clk 0:01:44.2]} 25... Nxc4 {[%clk 0:01:41.8]} 26. dxc7 {[%clk
0:01:36.4]} 26... Nd6 {[%clk 0:01:15.1]} 27. Rd1 {[%clk 0:01:34.9]} 27... Nc8
{[%clk 0:01:14.4]} 28. Rd8 {[%clk 0:01:34.6]} 28... Rg8 {[%clk 0:01:14.9]} 29.
Kf2 {[%clk 0:01:23.8]} 29... g6 {[%clk 0:01:15]} 30. Ke3 {[%clk 0:01:23.1]}
30... Kg7 {[%clk 0:01:15.4]} 31. Kd4 {[%clk 0:01:21.8]} 31... Kf7 {[%clk
0:01:14.8]} 32. Kc4 {[%clk 0:01:10.7]} 32... Re8 {[%clk 0:01:12.4]} 33. Kb5
{[%clk 0:01:10]} 33... Ke7 {[%clk 0:01:11]} 34. Rd1 {[%clk 0:01:03.9]} 34... Rf8
{[%clk 0:01:09.7]} 35. c4 {[%clk 0:00:55.2]} 35... Rf5+ {[%clk 0:01:06.3]} 36.
Kb4 {[%clk 0:00:53.3]} 36... Rc5 {[%clk 0:01:06.2]} 37. Re1+ {[%clk 0:00:48.4]}
37... Kd7 {[%clk 0:01:05.7]} 38. Rf1 {[%clk 0:00:47.9]} 38... Rxc7 {[%clk
0:01:04.1]} 39. Rf7+ {[%clk 0:00:44.7]} 39... Kc6 {[%clk 0:01:04.5]} 40. Rf6+
{[%clk 0:00:41.6]} 40... Nd6 {[%clk 0:01:04.8]} 41. h4 {[%clk 0:00:40.4]} 41...
Rf7 {[%clk 0:01:04.7]} 42. Re6 {[%clk 0:00:40.8]} 42... Rf4 {[%clk 0:01:02.8]}
43. Kb3 {[%clk 0:00:38.7]} 43... Rxh4 {[%clk 0:01:01.6]} 44. g3 {[%clk
0:00:38.3]} 44... Rg4 {[%clk 0:00:58]} 45. Kb4 {[%clk 0:00:37.8]} 45... Rxc4+
{[%clk 0:00:57.8]} 46. Kb3 {[%clk 0:00:37.9]} 46... Rg4 {[%clk 0:00:58.2]} 47.
Re7 {[%clk 0:00:36.9]} 47... Rxg3+ {[%clk 0:00:58]} 48. Ka4 {[%clk 0:00:36.7]}
48... Rg4+ {[%clk 0:00:57.1]} 49. Kb3 {[%clk 0:00:36.5]} 49... h5 {[%clk
0:00:57.4]} 50. a4 {[%clk 0:00:34.1]} 50... h4 {[%clk 0:00:56.7]} 51. a5 {[%clk
0:00:34]} 51... bxa5 {[%clk 0:00:56.7]} 52. Re3 {[%clk 0:00:32.8]} 52... Rg3
{[%clk 0:00:56.8]} 53. Ka4 {[%clk 0:00:33.2]} 53... b5+ {[%clk 0:00:54.4]} 54.
Kxa5 {[%clk 0:00:31.7]} 54... Rxe3 {[%clk 0:00:54.5]} 55. Kb4 {[%clk 0:00:31.6]}
0-1

[Event "Late-Titled-Tuesday-Blitz-April-02-2024"]
[Site "Chess.com"]
[Date "2024.04.02"]
[Round "2"]
[White "Fh2411"]
[Black "combidharma"]
[Result "0-1"]
[WhiteElo "2570"]
[BlackElo "2859"]
[TimeControl "180+1"]
[EndTime "14:16:50 PDT"]
[Termination "combidharma won on time"]

1. d4 {[%clk 0:03:00.9]} 1... Nf6 {[%clk 0:02:54.2]} 2. Nf3 {[%clk 0:03:01.3]}
2... g6 {[%clk 0:02:54]} 3. Bg5 {[%clk 0:02:58.3]} 3... Bg7 {[%clk 0:02:54.2]}
4. e3 {[%clk 0:02:58.6]} 4... O-O {[%clk 0:02:53.7]} 5. c4 {[%clk 0:02:58.2]}
5... c5 {[%clk 0:02:52.8]} 6. Nc3 {[%clk 0:02:57.2]} 6... cxd4 {[%clk 0:02:43]}
7. Nxd4 {[%clk 0:02:58.1]} 7... d6 {[%clk 0:02:38.6]} 8. Be2 {[%clk 0:02:55.9]}
8... Qa5 {[%clk 0:02:37.8]} 9. Bxf6 {[%clk 0:02:45.5]} 9... Bxf6 {[%clk
0:02:38.7]} 10. O-O {[%clk 0:02:45.8]} 10... Nc6 {[%clk 0:02:21.2]} 11. Nd5
{[%clk 0:02:38.2]} 11... Bxd4 {[%clk 0:02:20.7]} 12. exd4 {[%clk 0:02:38]} 12...
e6 {[%clk 0:02:12.9]} 13. Nc3 {[%clk 0:02:10.6]} 13... e5 {[%clk 0:01:54.6]} 14.
dxe5 {[%clk 0:01:57]} 14... dxe5 {[%clk 0:01:55.5]} 15. Bf3 {[%clk 0:01:55.3]}
15... Nd4 {[%clk 0:01:52.4]} 16. Bd5 {[%clk 0:01:55.8]} 16... Be6 {[%clk
0:01:44.1]} 17. Re1 {[%clk 0:01:49.1]} 17... Qc7 {[%clk 0:01:34.8]} 18. b3
{[%clk 0:01:38.1]} 18... Rae8 {[%clk 0:01:25.4]} 19. Qd2 {[%clk 0:01:28]} 19...
Kg7 {[%clk 0:01:21.2]} 20. Re3 {[%clk 0:01:14.3]} 20... f6 {[%clk 0:01:16.8]}
21. Rae1 {[%clk 0:01:08.8]} 21... a6 {[%clk 0:01:13.9]} 22. Bxe6 {[%clk
0:01:02.7]} 22... Nxe6 {[%clk 0:01:05.3]} 23. Nd5 {[%clk 0:01:02.9]} 23... Qc5
{[%clk 0:01:02.4]} 24. g3 {[%clk 0:00:43.5]} 24... Rd8 {[%clk 0:00:57.4]} 25.
Qe2 {[%clk 0:00:18.2]} 25... Nd4 {[%clk 0:00:56.5]} 26. Qd3 {[%clk 0:00:15.2]}
26... b5 {[%clk 0:00:54.2]} 27. Kg2 {[%clk 0:00:15.2]} 27... Rc8 {[%clk
0:00:50.2]} 28. Rc1 {[%clk 0:00:15.2]} 28... Rfd8 {[%clk 0:00:40.9]} 29. Qe4
{[%clk 0:00:11.8]} 29... Rxd5 {[%clk 0:00:35.6]} 30. cxd5 {[%clk 0:00:03.1]}
30... Qxc1 {[%clk 0:00:35.1]} 31. Rd3 {[%clk 0:00:01.3]} 31... Qc5 {[%clk
0:00:31.5]} 32. f4 {[%clk 0:00:01.6]} 32... Qd6 {[%clk 0:00:30.6]} 33. fxe5
{[%clk 0:00:01.4]} 33... fxe5 {[%clk 0:00:31.5]} 0-1

[Event "Late-Titled-Tuesday-Blitz-April-02-2024"]
[Site "Chess.com"]
[Date "2024.04.02"]
[Round "2"]
[White "Fengwi"]
[Black "GodzillaChessYoutube"]
[Result "0-1"]
[WhiteElo "2438"]
[BlackElo "2698"]
[TimeControl "180+1"]
[EndTime "14:16:52 PDT"]
[Termination "GodzillaChessYoutube won on time"]

1. Nf3 {[%clk 0:02:58.2]} 1... d5 {[%clk 0:02:59.4]} 2. b3 {[%clk 0:02:58.4]}
2... Bf5 {[%clk 0:02:56.4]} 3. Bb2 {[%clk 0:02:58.2]} 3... e6 {[%clk 0:02:56.6]}
4. g3 {[%clk 0:02:58.2]} 4... h6 {[%clk 0:02:54.6]} 5. c4 {[%clk 0:02:57.6]}
5... Nf6 {[%clk 0:02:51.8]} 6. Bg2 {[%clk 0:02:57.8]} 6... Be7 {[%clk
0:02:48.7]} 7. O-O {[%clk 0:02:57.3]} 7... O-O {[%clk 0:02:47.9]} 8. d3 {[%clk
0:02:57.4]} 8... Bh7 {[%clk 0:02:47.5]} 9. Nbd2 {[%clk 0:02:57.1]} 9... a5
{[%clk 0:02:47.6]} 10. a3 {[%clk 0:02:57.2]} 10... c5 {[%clk 0:02:44.5]} 11.
cxd5 {[%clk 0:02:57]} 11... Nxd5 {[%clk 0:02:39.8]} 12. Rc1 {[%clk 0:02:02.7]}
12... a4 {[%clk 0:02:36.8]} 13. bxa4 {[%clk 0:02:02.7]} 13... Qa5 {[%clk
0:02:31.7]} 14. Qb3 {[%clk 0:01:42.5]} 14... Ra7 {[%clk 0:02:16.4]} 15. Rc4
{[%clk 0:01:10.7]} 15... Nd7 {[%clk 0:02:08.8]} 16. Rb1 {[%clk 0:01:06.1]} 16...
Rb8 {[%clk 0:01:45.9]} 17. Ne5 {[%clk 0:00:50]} 17... Nxe5 {[%clk 0:01:37.6]}
18. Bxe5 {[%clk 0:00:49]} 18... Rba8 {[%clk 0:01:35.8]} 19. Ne4 {[%clk
0:00:41.5]} 19... f6 {[%clk 0:01:07.6]} 20. Ba1 {[%clk 0:00:35.6]} 20... Bg6
{[%clk 0:01:07.1]} 21. Nc3 {[%clk 0:00:35.2]} 21... Bf7 {[%clk 0:01:06.1]} 22.
Nb5 {[%clk 0:00:33.5]} 22... Ra6 {[%clk 0:01:05.4]} 23. Re4 {[%clk 0:00:21.9]}
23... Rb6 {[%clk 0:01:04]} 24. Bh3 {[%clk 0:00:20]} 24... e5 {[%clk 0:01:02.2]}
25. Qc2 {[%clk 0:00:12]} 25... Rd8 {[%clk 0:00:51.7]} 26. f4 {[%clk 0:00:10.8]}
26... exf4 {[%clk 0:00:48.3]} 27. gxf4 {[%clk 0:00:11.4]} 27... Bf8 {[%clk
0:00:42.8]} 28. Qc1 {[%clk 0:00:05.5]} 28... Qa8 {[%clk 0:00:40.5]} 29. Bg2
{[%clk 0:00:04.5]} 29... Qb8 {[%clk 0:00:39.9]} 30. f5 {[%clk 0:00:04.2]} 30...
Ra6 {[%clk 0:00:36.5]} 31. Nc3 {[%clk 0:00:03.5]} 31... Ne7 {[%clk 0:00:33.6]}
32. Rf4 {[%clk 0:00:02.6]} 32... Qc7 {[%clk 0:00:26]} 33. Rf1 {[%clk 0:00:01.7]}
33... Qd7 {[%clk 0:00:24.3]} 0-1

[Event "Late-Titled-Tuesday-Blitz-April-02-2024"]
[Site "Chess.com"]
[Date "2024.04.02"]
[Round "2"]
[White "burritus"]
[Black "giovannibrandao7"]
[Result "1/2-1/2"]
[WhiteElo "2431"]
[BlackElo "2164"]
[TimeControl "180+1"]
[EndTime "14:16:55 PDT"]
[Termination "Game drawn by repetition"]

1. e4 {[%clk 0:02:51.8]} 1... c5 {[%clk 0:02:59.5]} 2. Nc3 {[%clk 0:02:48.8]}
2... Nc6 {[%clk 0:02:59.4]} 3. g3 {[%clk 0:02:48.8]} 3... g6 {[%clk 0:02:59.2]}
4. Bg2 {[%clk 0:02:48.7]} 4... Bg7 {[%clk 0:02:59.6]} 5. d3 {[%clk 0:02:49.3]}
5... e5 {[%clk 0:02:58.9]} 6. f4 {[%clk 0:02:48]} 6... d6 {[%clk 0:02:59]} 7.
Nf3 {[%clk 0:02:48]} 7... Nge7 {[%clk 0:02:58.9]} 8. O-O {[%clk 0:02:47.6]} 8...
O-O {[%clk 0:02:59.2]} 9. f5 {[%clk 0:02:42.6]} 9... gxf5 {[%clk 0:02:56.3]} 10.
Nh4 {[%clk 0:02:41.4]} 10... fxe4 {[%clk 0:02:41.8]} 11. dxe4 {[%clk 0:02:38.3]}
11... f5 {[%clk 0:02:41.6]} 12. Bg5 {[%clk 0:02:35.2]} 12... h6 {[%clk
0:02:35.6]} 13. Be3 {[%clk 0:02:27.4]} 13... Nd4 {[%clk 0:02:08.3]} 14. Qd2
{[%clk 0:02:22.3]} 14... Rf6 {[%clk 0:01:44.6]} 15. exf5 {[%clk 0:02:15.3]}
15... Nexf5 {[%clk 0:01:30.5]} 16. Nd5 {[%clk 0:02:14.8]} 16... Rf8 {[%clk
0:01:29]} 17. Ng6 {[%clk 0:02:00.2]} 17... Nxe3 {[%clk 0:01:11.3]} 18. Nde7+
{[%clk 0:01:50.8]} 18... Kh7 {[%clk 0:01:08.6]} 19. Nxf8+ {[%clk 0:01:41.7]}
19... Bxf8 {[%clk 0:01:07.6]} 20. Be4+ {[%clk 0:01:38.6]} 20... Kg7 {[%clk
0:01:04.5]} 21. Qxe3 {[%clk 0:01:37]} 21... Bxe7 {[%clk 0:00:55.6]} 22. c3
{[%clk 0:01:36.3]} 22... Nc6 {[%clk 0:00:38.2]} 23. Rad1 {[%clk 0:01:32]} 23...
Be6 {[%clk 0:00:35.8]} 24. Qf3 {[%clk 0:01:28.5]} 24... Qe8 {[%clk 0:00:29.5]}
25. Bf5 {[%clk 0:01:20.2]} 25... Bxf5 {[%clk 0:00:23.3]} 26. Qxf5 {[%clk
0:01:19]} 26... Rd8 {[%clk 0:00:14.8]} 27. Qg4+ {[%clk 0:01:16.4]} 27... Qg6
{[%clk 0:00:14.8]} 28. Qc4 {[%clk 0:01:13.8]} 28... Bg5 {[%clk 0:00:08.3]} 29.
Kg2 {[%clk 0:01:10.4]} 29... Be3 {[%clk 0:00:07.1]} 30. Rf3 {[%clk 0:01:07.7]}
30... Qc2+ {[%clk 0:00:06.8]} 31. Kh3 {[%clk 0:01:04.2]} 31... Qxd1 {[%clk
0:00:02.7]} 32. Qf7+ {[%clk 0:01:03.8]} 32... Kh8 {[%clk 0:00:03.6]} 33. Qf6+
{[%clk 0:01:03.6]} 33... Kh7 {[%clk 0:00:03.9]} 34. Qf7+ {[%clk 0:01:01.8]}
34... Kh8 {[%clk 0:00:03.3]} 35. Rf1 {[%clk 0:00:52.2]} 35... Qd3 {[%clk
0:00:01.5]} 36. Qf6+ {[%clk 0:00:52.6]} 36... Kg8 {[%clk 0:00:01.1]} 37. Qf7+
{[%clk 0:00:51.5]} 37... Kh8 {[%clk 0:00:01.7]} 38. Qf6+ {[%clk 0:00:38.4]}
38... Kg8 {[%clk 0:00:01.8]} 39. Qf7+ {[%clk 0:00:38.6]} 39... Kh8 {[%clk
0:00:02.2]} 1/2-1/2